[Event "Early-Titled-Tuesday-Blitz-March-19-2024"]
[Site "Chess.com"]
[Date "2024.03.19"]
[Round "9"]
[White "cristiano78"]
[Black "ljuks68"]
[Result "1-0"]
[WhiteElo "2263"]
[BlackElo "2440"]
[TimeControl "180+1"]
[EndTime "9:43:44 PDT"]
[Termination "cristiano78 won on time"]

1. d4 {[%clk 0:03:00.8]} 1... d5 {[%clk 0:02:59.9]} 2. c4 {[%clk 0:03:01]} 2...
c6 {[%clk 0:02:59.9]} 3. Nf3 {[%clk 0:03:00.6]} 3... Nf6 {[%clk 0:03:00.3]} 4.
Nc3 {[%clk 0:03:00.2]} 4... dxc4 {[%clk 0:03:00.3]} 5. a4 {[%clk 0:02:59.8]}
5... Bf5 {[%clk 0:03:00.1]} 6. Ne5 {[%clk 0:02:58.2]} 6... Na6 {[%clk
0:03:00.5]} 7. f3 {[%clk 0:02:56]} 7... Nd7 {[%clk 0:02:59.8]} 8. Nxc4 {[%clk
0:02:55.6]} 8... e5 {[%clk 0:02:59.8]} 9. dxe5 {[%clk 0:02:52]} 9... Qh4+ {[%clk
0:02:59.9]} 10. g3 {[%clk 0:02:46.7]} 10... Qxc4 {[%clk 0:02:58.6]} 11. e4
{[%clk 0:02:46.8]} 11... Qe6 {[%clk 0:02:56.5]} 12. exf5 {[%clk 0:02:46.8]}
12... Qxe5+ {[%clk 0:02:56.1]} 13. Kf2 {[%clk 0:02:47.2]} 13... Nb4 {[%clk
0:02:40.7]} 14. Bf4 {[%clk 0:02:44.2]} 14... Bc5+ {[%clk 0:02:21.8]} 15. Kg2
{[%clk 0:02:44]} 15... Qxf5 {[%clk 0:02:21]} 16. Bc4 {[%clk 0:02:39.6]} 16...
O-O {[%clk 0:02:15.9]} 17. Re1 {[%clk 0:02:35.2]} 17... Nc2 {[%clk 0:01:32.7]}
18. Re4 {[%clk 0:02:22.8]} 18... Nxa1 {[%clk 0:01:32]} 19. Qxa1 {[%clk
0:02:22.8]} 19... Rae8 {[%clk 0:01:26.6]} 20. Bd3 {[%clk 0:02:17.9]} 20... Rxe4
{[%clk 0:01:25.6]} 21. Nxe4 {[%clk 0:02:18.1]} 21... Bb4 {[%clk 0:01:20.1]} 22.
Qb1 {[%clk 0:02:16.1]} 22... Qd5 {[%clk 0:01:07.8]} 23. Ng5 {[%clk 0:02:11.6]}
23... h6 {[%clk 0:01:06.3]} 24. Be4 {[%clk 0:02:08.8]} 24... Qb3 {[%clk
0:00:52.5]} 25. Bd5 {[%clk 0:02:01.3]} 25... hxg5 {[%clk 0:00:47.5]} 26. Bxb3
{[%clk 0:02:00.7]} 26... gxf4 {[%clk 0:00:47.3]} 27. Qf5 {[%clk 0:01:56.5]}
27... Nf6 {[%clk 0:00:45.9]} 28. Qxf4 {[%clk 0:01:55.9]} 28... a5 {[%clk
0:00:36.2]} 29. Qc7 {[%clk 0:01:53.6]} 29... b5 {[%clk 0:00:21.4]} 30. Qxc6
{[%clk 0:01:52.5]} 30... bxa4 {[%clk 0:00:21.4]} 31. Qxa4 {[%clk 0:01:49.6]}
31... Rd8 {[%clk 0:00:18]} 32. h4 {[%clk 0:01:46.5]} 32... Rd2+ {[%clk
0:00:17.5]} 33. Kh3 {[%clk 0:01:46.5]} 33... Rxb2 {[%clk 0:00:17.7]} 34. Bc4
{[%clk 0:01:39.4]} 34... Rd2 {[%clk 0:00:08]} 35. Qc6 {[%clk 0:01:38.9]} 35...
Rd7 {[%clk 0:00:06.3]} 36. Qc8+ {[%clk 0:01:35.6]} 36... Kh7 {[%clk 0:00:05.7]}
37. g4 {[%clk 0:01:33.6]} 1-0

[Event "Early-Titled-Tuesday-Blitz-March-19-2024"]
[Site "Chess.com"]
[Date "2024.03.19"]
[Round "9"]
[White "Yushko_Olga"]
[Black "aljado"]
[Result "1-0"]
[WhiteElo "2236"]
[BlackElo "2111"]
[TimeControl "180+1"]
[EndTime "9:43:55 PDT"]
[Termination "Yushko_Olga won by resignation"]

1. d4 {[%clk 0:03:00.2]} 1... Nf6 {[%clk 0:02:58.9]} 2. c4 {[%clk 0:03:01]} 2...
c5 {[%clk 0:02:58.1]} 3. d5 {[%clk 0:03:01]} 3... b5 {[%clk 0:02:58]} 4. cxb5
{[%clk 0:03:01.4]} 4... a6 {[%clk 0:02:58]} 5. b6 {[%clk 0:03:02.2]} 5... d6
{[%clk 0:02:56]} 6. Nc3 {[%clk 0:03:02.6]} 6... g6 {[%clk 0:02:55.3]} 7. e4
{[%clk 0:03:03.2]} 7... Bg7 {[%clk 0:02:54.8]} 8. Bd3 {[%clk 0:03:03.5]} 8...
Qxb6 {[%clk 0:02:53.7]} 9. Nf3 {[%clk 0:03:03.9]} 9... Nbd7 {[%clk 0:02:53.6]}
10. O-O {[%clk 0:03:04.1]} 10... O-O {[%clk 0:02:49.2]} 11. Re1 {[%clk
0:03:02.1]} 11... Rb8 {[%clk 0:02:48]} 12. h3 {[%clk 0:03:01.4]} 12... a5 {[%clk
0:02:40.3]} 13. Qe2 {[%clk 0:03:00.6]} 13... Qb4 {[%clk 0:02:33.3]} 14. Rb1
{[%clk 0:02:58.5]} 14... a4 {[%clk 0:02:28.5]} 15. Bd2 {[%clk 0:02:57.1]} 15...
a3 {[%clk 0:02:10.9]} 16. Nb5 {[%clk 0:02:52.2]} 16... Qa4 {[%clk 0:02:06.4]}
17. Nxa3 {[%clk 0:02:49.2]} 17... Nh5 {[%clk 0:01:50.4]} 18. Bc2 {[%clk
0:02:47.1]} 18... Qa8 {[%clk 0:01:45.8]} 19. Bb3 {[%clk 0:02:38.2]} 19... Ba6
{[%clk 0:01:38.5]} 20. Qe3 {[%clk 0:02:28.5]} 20... Ne5 {[%clk 0:01:26.8]} 21.
Nxe5 {[%clk 0:02:20.1]} 21... Bxe5 {[%clk 0:01:25.4]} 22. Bc3 {[%clk 0:02:13.5]}
22... Nf4 {[%clk 0:01:17.6]} 23. Bxe5 {[%clk 0:02:03.4]} 23... dxe5 {[%clk
0:01:17.3]} 24. Nc4 {[%clk 0:01:54.2]} 24... Rb4 {[%clk 0:01:11.2]} 25. Rbc1
{[%clk 0:01:42.2]} 25... Qb8 {[%clk 0:01:06.7]} 26. g3 {[%clk 0:01:41.3]} 26...
Nh5 {[%clk 0:00:47.3]} 27. Qxc5 {[%clk 0:01:33.9]} 27... Nf6 {[%clk 0:00:42.3]}
28. Qxe7 {[%clk 0:01:31.5]} 28... Kg7 {[%clk 0:00:27.4]} 29. Qxe5 {[%clk
0:01:24.2]} 29... Qxe5 {[%clk 0:00:26]} 30. Nxe5 {[%clk 0:01:24.2]} 30... Rxe4
{[%clk 0:00:25]} 31. Rxe4 {[%clk 0:01:23.5]} 31... Nxe4 {[%clk 0:00:24.9]} 32.
Rc6 {[%clk 0:01:19.5]} 32... Bb5 {[%clk 0:00:19.1]} 33. Rb6 {[%clk 0:01:17.9]}
33... Be2 {[%clk 0:00:18.5]} 34. d6 {[%clk 0:01:16.3]} 34... Rd8 {[%clk
0:00:16.7]} 35. Nxf7 {[%clk 0:01:15.9]} 1-0

[Event "Early-Titled-Tuesday-Blitz-March-19-2024"]
[Site "Chess.com"]
[Date "2024.03.19"]
[Round "9"]
[White "ChessSwole"]
[Black "Lovetov"]
[Result "1-0"]
[WhiteElo "2698"]
[BlackElo "2549"]
[TimeControl "180+1"]
[EndTime "9:43:56 PDT"]
[Termination "ChessSwole won by checkmate"]

1. e4 {[%clk 0:03:00.9]} 1... c5 {[%clk 0:02:59.4]} 2. Nf3 {[%clk 0:03:00.5]}
2... Nc6 {[%clk 0:02:58.4]} 3. d4 {[%clk 0:03:00]} 3... cxd4 {[%clk 0:02:58.8]}
4. Nxd4 {[%clk 0:03:00.9]} 4... Nf6 {[%clk 0:02:59.1]} 5. Nc3 {[%clk 0:03:00.2]}
5... e5 {[%clk 0:02:57.2]} 6. Ndb5 {[%clk 0:03:00.5]} 6... d6 {[%clk 0:02:57.3]}
7. Nd5 {[%clk 0:03:01.1]} 7... Nxd5 {[%clk 0:02:57]} 8. exd5 {[%clk 0:03:02]}
8... Nb8 {[%clk 0:02:57.3]} 9. Qf3 {[%clk 0:02:59.1]} 9... Be7 {[%clk
0:02:51.4]} 10. Qc3 {[%clk 0:02:57.9]} 10... Na6 {[%clk 0:02:46.7]} 11. Be3
{[%clk 0:02:54.7]} 11... O-O {[%clk 0:02:33.1]} 12. Nxa7 {[%clk 0:02:51.2]}
12... Bf5 {[%clk 0:02:13.1]} 13. Bxa6 {[%clk 0:02:41.6]} 13... bxa6 {[%clk
0:02:08]} 14. Nc6 {[%clk 0:02:42.1]} 14... Qd7 {[%clk 0:02:05]} 15. O-O {[%clk
0:02:37.8]} 15... Bf6 {[%clk 0:02:03.3]} 16. Qd2 {[%clk 0:02:29.1]} 16... h5
{[%clk 0:01:52.6]} 17. c4 {[%clk 0:02:27.6]} 17... g6 {[%clk 0:01:50.8]} 18.
Rac1 {[%clk 0:02:18.8]} 18... Bg7 {[%clk 0:01:47]} 19. b4 {[%clk 0:02:12.6]}
19... Rac8 {[%clk 0:01:42.7]} 20. a4 {[%clk 0:02:06.4]} 20... h4 {[%clk
0:01:40.9]} 21. h3 {[%clk 0:02:00.1]} 21... f6 {[%clk 0:01:34.5]} 22. b5 {[%clk
0:01:39.1]} 22... Ra8 {[%clk 0:01:28.5]} 23. b6 {[%clk 0:01:36.7]} 23... Rfc8
{[%clk 0:01:26.6]} 24. Kh2 {[%clk 0:01:21.7]} 24... g5 {[%clk 0:01:22.4]} 25. f3
{[%clk 0:01:18.3]} 25... Bf8 {[%clk 0:01:17.9]} 26. Qb2 {[%clk 0:01:07.4]} 26...
Rxc6 {[%clk 0:01:14.8]} 27. dxc6 {[%clk 0:01:08.3]} 27... Qxc6 {[%clk
0:01:15.6]} 28. a5 {[%clk 0:01:03.6]} 28... Bc8 {[%clk 0:01:06.3]} 29. Qc2
{[%clk 0:00:58.2]} 29... f5 {[%clk 0:01:03.5]} 30. Rb1 {[%clk 0:00:52.5]} 30...
Be7 {[%clk 0:00:59.8]} 31. b7 {[%clk 0:00:47.2]} 31... Bxb7 {[%clk 0:00:59.3]}
32. Qxf5 {[%clk 0:00:47]} 32... d5 {[%clk 0:00:36.2]} 33. Rb6 {[%clk 0:00:45.5]}
33... Qc8 {[%clk 0:00:31.5]} 34. Rg6+ {[%clk 0:00:45.2]} 34... Kh7 {[%clk
0:00:31.4]} 35. Qf7+ {[%clk 0:00:45.3]} 35... Kh8 {[%clk 0:00:31.3]} 36. Qg7#
{[%clk 0:00:46.1]} 1-0

[Event "Early-Titled-Tuesday-Blitz-March-19-2024"]
[Site "Chess.com"]
[Date "2024.03.19"]
[Round "9"]
[White "LeRoidesChampions"]
[Black "Muslim_player_05"]
[Result "1/2-1/2"]
[WhiteElo "2650"]
[BlackElo "2502"]
[TimeControl "180+1"]
[EndTime "9:44:03 PDT"]
[Termination "Game drawn by 50-move rule"]

1. e4 {[%clk 0:03:00.9]} 1... e5 {[%clk 0:02:56.8]} 2. Nf3 {[%clk 0:03:00.7]}
2... Nc6 {[%clk 0:02:57.3]} 3. Bb5 {[%clk 0:02:59.8]} 3... a6 {[%clk 0:02:57]}
4. Ba4 {[%clk 0:02:59.9]} 4... Nf6 {[%clk 0:02:56.3]} 5. d3 {[%clk 0:03:00.5]}
5... b5 {[%clk 0:02:54.5]} 6. Bb3 {[%clk 0:03:00.6]} 6... Bc5 {[%clk 0:02:55.2]}
7. Nc3 {[%clk 0:03:01.1]} 7... d6 {[%clk 0:02:54.3]} 8. a3 {[%clk 0:02:59.7]}
8... h6 {[%clk 0:02:53.2]} 9. Nd5 {[%clk 0:03:00.2]} 9... Rb8 {[%clk 0:02:42.4]}
10. c3 {[%clk 0:02:58.6]} 10... Nxd5 {[%clk 0:02:24.1]} 11. Bxd5 {[%clk
0:02:58]} 11... Ne7 {[%clk 0:02:23.1]} 12. Ba2 {[%clk 0:02:58.2]} 12... Bb6
{[%clk 0:02:17.7]} 13. Be3 {[%clk 0:02:54.5]} 13... Bxe3 {[%clk 0:02:09.8]} 14.
fxe3 {[%clk 0:02:54.4]} 14... O-O {[%clk 0:02:06.3]} 15. O-O {[%clk 0:02:54.7]}
15... Be6 {[%clk 0:02:06.2]} 16. a4 {[%clk 0:02:54.5]} 16... b4 {[%clk
0:02:02.8]} 17. Bxe6 {[%clk 0:02:53]} 17... fxe6 {[%clk 0:02:02.1]} 18. c4
{[%clk 0:02:53.7]} 18... Qe8 {[%clk 0:01:53.4]} 19. b3 {[%clk 0:02:46.7]} 19...
a5 {[%clk 0:01:49.5]} 20. Qe2 {[%clk 0:02:45.8]} 20... Qh5 {[%clk 0:01:43.7]}
21. Rf2 {[%clk 0:02:40.4]} 21... Rf6 {[%clk 0:01:43.4]} 22. Raf1 {[%clk
0:02:40]} 22... Rbf8 {[%clk 0:01:43.2]} 23. Nd2 {[%clk 0:02:33]} 23... Qxe2
{[%clk 0:01:35.1]} 24. Rxe2 {[%clk 0:02:33.9]} 24... Rxf1+ {[%clk 0:01:34.9]}
25. Nxf1 {[%clk 0:02:34.8]} 25... Nc6 {[%clk 0:01:30.3]} 26. Nd2 {[%clk
0:02:33.6]} 26... g5 {[%clk 0:01:29]} 27. Rf2 {[%clk 0:02:30.8]} 27... Rxf2
{[%clk 0:01:28.1]} 28. Kxf2 {[%clk 0:02:31.7]} 28... Kf7 {[%clk 0:01:27.7]} 29.
Kf3 {[%clk 0:02:31.3]} 29... h5 {[%clk 0:01:26.5]} 30. g4 {[%clk 0:02:26.1]}
30... h4 {[%clk 0:01:15.1]} 31. h3 {[%clk 0:02:25.9]} 31... Nb8 {[%clk
0:01:13.2]} 32. c5 {[%clk 0:02:19.6]} 32... dxc5 {[%clk 0:01:05.8]} 33. Nc4
{[%clk 0:02:18.5]} 33... Nc6 {[%clk 0:01:05.6]} 34. Ke2 {[%clk 0:02:18.1]} 34...
Kf6 {[%clk 0:01:02.5]} 35. Kf3 {[%clk 0:02:16]} 35... Ke7 {[%clk 0:01:02.7]} 36.
Ke2 {[%clk 0:02:14.7]} 36... Kf6 {[%clk 0:01:02.4]} 37. Nd2 {[%clk 0:02:13.9]}
37... Ke7 {[%clk 0:00:56.7]} 38. Kd1 {[%clk 0:02:13.8]} 38... Kf6 {[%clk
0:00:56.4]} 39. Kc2 {[%clk 0:02:13.6]} 39... Ke7 {[%clk 0:00:54.5]} 40. Nc4
{[%clk 0:02:02.6]} 40... Kf6 {[%clk 0:00:54.2]} 41. Kb2 {[%clk 0:02:01.1]} 41...
Ke7 {[%clk 0:00:53.6]} 42. Nd2 {[%clk 0:02:01.2]} 42... Nd8 {[%clk 0:00:49.1]}
43. Kc2 {[%clk 0:01:58.1]} 43... Kf6 {[%clk 0:00:48.9]} 44. Kd1 {[%clk
0:01:57.4]} 44... Ke7 {[%clk 0:00:48.3]} 45. Ke2 {[%clk 0:01:56]} 45... Kf6
{[%clk 0:00:48.3]} 46. Nf3 {[%clk 0:01:47.6]} 46... Nb7 {[%clk 0:00:47.6]} 47.
Nd2 {[%clk 0:01:43.8]} 47... Nd6 {[%clk 0:00:47.9]} 48. Nc4 {[%clk 0:01:39.8]}
48... Nxc4 {[%clk 0:00:48]} 49. dxc4 {[%clk 0:01:39.2]} 49... c6 {[%clk
0:00:45.9]} 50. Kd3 {[%clk 0:01:40.1]} 50... Ke7 {[%clk 0:00:45.4]} 51. Kc2
{[%clk 0:01:41]} 51... Kd6 {[%clk 0:00:46.3]} 52. Kb1 {[%clk 0:01:41.9]} 52...
Kd7 {[%clk 0:00:47.2]} 53. Kb2 {[%clk 0:01:42.8]} 53... Ke7 {[%clk 0:00:48.1]}
54. Ka2 {[%clk 0:01:43.7]} 54... Kd6 {[%clk 0:00:49]} 55. Ka1 {[%clk 0:01:44.6]}
55... Kc7 {[%clk 0:00:49.9]} 56. Kb1 {[%clk 0:01:45.5]} 56... Kb6 {[%clk
0:00:50.8]} 57. Kc1 {[%clk 0:01:46.4]} 57... Kb7 {[%clk 0:00:51.7]} 58. Kd1
{[%clk 0:01:47.3]} 58... Kc7 {[%clk 0:00:52.6]} 59. Ke1 {[%clk 0:01:48.2]} 59...
Kd6 {[%clk 0:00:53.5]} 60. Kf1 {[%clk 0:01:49.1]} 60... Kd7 {[%clk 0:00:54.4]}
61. Kg1 {[%clk 0:01:50]} 61... Ke7 {[%clk 0:00:55.3]} 62. Kh1 {[%clk 0:01:50.9]}
62... Kf6 {[%clk 0:00:56.2]} 63. Kh2 {[%clk 0:01:51.8]} 63... Kf7 {[%clk
0:00:57.1]} 64. Kg2 {[%clk 0:01:52.7]} 64... Kg7 {[%clk 0:00:58]} 65. Kf3 {[%clk
0:01:53.6]} 65... Kg6 {[%clk 0:00:58.9]} 66. Kf2 {[%clk 0:01:54.5]} 66... Kf6
{[%clk 0:00:59.8]} 67. Ke1 {[%clk 0:01:55.4]} 67... Kf7 {[%clk 0:01:00.7]} 68.
Kd2 {[%clk 0:01:56.3]} 68... Ke7 {[%clk 0:01:01.6]} 69. Kd3 {[%clk 0:01:57.2]}
69... Kd6 {[%clk 0:01:02.5]} 70. Ke2 {[%clk 0:01:58.1]} 70... Kd7 {[%clk
0:01:03.4]} 71. Kd1 {[%clk 0:01:59]} 71... Kc7 {[%clk 0:01:04.3]} 72. Kc2 {[%clk
0:01:59.9]} 72... Kb6 {[%clk 0:01:05.2]} 73. Kb2 {[%clk 0:02:00.8]} 73... Kb7
{[%clk 0:01:06.1]} 74. Ka1 {[%clk 0:02:01.7]} 74... Kc7 {[%clk 0:01:07]} 75. Kb1
{[%clk 0:02:02.6]} 75... Kd6 {[%clk 0:01:07.9]} 76. Kc1 {[%clk 0:02:03.5]} 76...
Kd7 {[%clk 0:01:08.8]} 77. Kb2 {[%clk 0:02:04.4]} 77... Kc7 {[%clk 0:01:09.7]}
78. Ka2 {[%clk 0:02:05.3]} 78... Kd6 {[%clk 0:01:10.6]} 79. Ka1 {[%clk
0:02:06.2]} 79... Kd7 {[%clk 0:01:11.5]} 80. Kb1 {[%clk 0:02:07.1]} 80... Kc7
{[%clk 0:01:12.4]} 81. Kc2 {[%clk 0:02:08]} 81... Kb6 {[%clk 0:01:13.3]} 82. Kd3
{[%clk 0:02:08.9]} 82... Kb7 {[%clk 0:01:14.2]} 83. Kd2 {[%clk 0:02:09.8]} 83...
Ka6 {[%clk 0:01:15.1]} 84. Ke2 {[%clk 0:02:10.7]} 84... Ka7 {[%clk 0:01:16]} 85.
Kf2 {[%clk 0:02:11.6]} 85... Kb7 {[%clk 0:01:16.9]} 86. Kf1 {[%clk 0:02:12.5]}
86... Kb6 {[%clk 0:01:17.8]} 87. Kg1 {[%clk 0:02:13.4]} 87... Kc7 {[%clk
0:01:18.7]} 88. Kh1 {[%clk 0:02:14.3]} 88... Kd6 {[%clk 0:01:19.6]} 89. Kh2
{[%clk 0:02:15.2]} 89... Kd7 {[%clk 0:01:20.5]} 90. Kg2 {[%clk 0:02:16.1]} 90...
Ke7 {[%clk 0:01:21.4]} 91. Kf3 {[%clk 0:02:17]} 91... Kf6 {[%clk 0:01:22.3]} 92.
Kf2 {[%clk 0:02:17.9]} 92... Kf7 {[%clk 0:01:23.2]} 93. Ke2 {[%clk 0:02:18.8]}
93... Kg6 {[%clk 0:01:24.1]} 94. Ke1 {[%clk 0:02:19.7]} 94... Kg7 {[%clk
0:01:25]} 95. Kd1 {[%clk 0:02:19.2]} 95... Kh6 {[%clk 0:01:25.9]} 96. Kc1 {[%clk
0:02:19.6]} 96... Kh7 {[%clk 0:01:26.8]} 97. Kb2 {[%clk 0:02:20.5]} 97... Kg6
{[%clk 0:01:27.7]} 98. Ka2 {[%clk 0:02:21.3]} 98... Kg7 {[%clk 0:01:28.6]} 99.
Ka1 {[%clk 0:02:21.2]} 99... Kf6 {[%clk 0:01:29.5]} 1/2-1/2

[Event "Early-Titled-Tuesday-Blitz-March-19-2024"]
[Site "Chess.com"]
[Date "2024.03.19"]
[Round "9"]
[White "KetiTsatsalashvili"]
[Black "KnightmareJoker"]
[Result "1-0"]
[WhiteElo "2480"]
[BlackElo "2305"]
[TimeControl "180+1"]
[EndTime "9:44:05 PDT"]
[Termination "KetiTsatsalashvili won by resignation"]

1. d4 {[%clk 0:03:00.9]} 1... d5 {[%clk 0:03:00.3]} 2. Nf3 {[%clk 0:02:58.2]}
2... Nf6 {[%clk 0:03:00.3]} 3. c4 {[%clk 0:02:56.4]} 3... e6 {[%clk 0:03:00.9]}
4. Nc3 {[%clk 0:02:56]} 4... Be7 {[%clk 0:03:01.3]} 5. Bg5 {[%clk 0:02:56.5]}
5... h6 {[%clk 0:03:01]} 6. Bh4 {[%clk 0:02:55.8]} 6... O-O {[%clk 0:03:01.6]}
7. e3 {[%clk 0:02:56.3]} 7... b6 {[%clk 0:03:01.7]} 8. cxd5 {[%clk 0:02:54.9]}
8... Nxd5 {[%clk 0:03:01.6]} 9. Bxe7 {[%clk 0:02:40.5]} 9... Qxe7 {[%clk
0:03:02.5]} 10. Nxd5 {[%clk 0:02:40.9]} 10... exd5 {[%clk 0:03:03.4]} 11. Bd3
{[%clk 0:02:41.1]} 11... Be6 {[%clk 0:02:58.4]} 12. Rc1 {[%clk 0:02:38]} 12...
c5 {[%clk 0:02:58.3]} 13. Ne5 {[%clk 0:02:33.7]} 13... c4 {[%clk 0:02:41.2]} 14.
Bb1 {[%clk 0:02:30.6]} 14... Nd7 {[%clk 0:02:36.3]} 15. O-O {[%clk 0:02:26.7]}
15... Nxe5 {[%clk 0:02:31.6]} 16. dxe5 {[%clk 0:02:27.6]} 16... Rfd8 {[%clk
0:02:17.8]} 17. f4 {[%clk 0:02:26.5]} 17... Qc5 {[%clk 0:02:11.6]} 18. f5 {[%clk
0:01:55.1]} 18... Qxe3+ {[%clk 0:01:59.4]} 19. Kh1 {[%clk 0:01:54.6]} 19... Bc8
{[%clk 0:01:49]} 20. e6 {[%clk 0:01:51.4]} 20... fxe6 {[%clk 0:01:45.4]} 21. f6
{[%clk 0:01:50.4]} 21... Rf8 {[%clk 0:01:36.3]} 22. Qc2 {[%clk 0:01:08.2]} 22...
Qd3 {[%clk 0:01:27.4]} 23. Qa4 {[%clk 0:00:55.9]} 23... Qd4 {[%clk 0:01:18.9]}
24. Qc6 {[%clk 0:00:31.5]} 24... Rb8 {[%clk 0:01:10.2]} 25. Qc7 {[%clk
0:00:27.6]} 25... Rb7 {[%clk 0:00:58.2]} 26. f7+ {[%clk 0:00:23.3]} 26... Kh8
{[%clk 0:00:54.8]} 27. Qxc8 {[%clk 0:00:20.4]} 27... Qc5 {[%clk 0:00:46.5]} 28.
Qxb7 {[%clk 0:00:20.5]} 28... d4 {[%clk 0:00:45.4]} 29. Bd3 {[%clk 0:00:18.5]}
29... c3 {[%clk 0:00:44.7]} 30. bxc3 {[%clk 0:00:18.5]} 30... dxc3 {[%clk
0:00:44.6]} 31. Qe4 {[%clk 0:00:18.2]} 1-0

[Event "Early-Titled-Tuesday-Blitz-March-19-2024"]
[Site "Chess.com"]
[Date "2024.03.19"]
[Round "9"]
[White "moro182"]
[Black "mitrabhaa"]
[Result "1-0"]
[WhiteElo "2878"]
[BlackElo "3062"]
[TimeControl "180+1"]
[EndTime "9:44:11 PDT"]
[Termination "moro182 won by resignation"]

1. d4 {[%clk 0:03:00.4]} 1... Nf6 {[%clk 0:02:59.8]} 2. Bf4 {[%clk 0:02:59.7]}
2... b6 {[%clk 0:02:55.5]} 3. Nf3 {[%clk 0:02:55.6]} 3... Bb7 {[%clk 0:02:53.9]}
4. h3 {[%clk 0:02:56.1]} 4... g6 {[%clk 0:02:53.9]} 5. e3 {[%clk 0:02:53.9]}
5... Bg7 {[%clk 0:02:54.4]} 6. a4 {[%clk 0:02:47.9]} 6... a6 {[%clk 0:02:52.9]}
7. c4 {[%clk 0:02:42.1]} 7... d6 {[%clk 0:02:52.8]} 8. Nc3 {[%clk 0:02:38.2]}
8... O-O {[%clk 0:02:52.5]} 9. a5 {[%clk 0:02:38.5]} 9... bxa5 {[%clk
0:02:51.9]} 10. Be2 {[%clk 0:02:38.2]} 10... Nbd7 {[%clk 0:02:51.3]} 11. O-O
{[%clk 0:02:32.5]} 11... Ne4 {[%clk 0:02:51]} 12. Nxe4 {[%clk 0:02:28.4]} 12...
Bxe4 {[%clk 0:02:51.9]} 13. Nd2 {[%clk 0:02:29.1]} 13... Bb7 {[%clk 0:02:51.1]}
14. Nb3 {[%clk 0:02:28.6]} 14... Rb8 {[%clk 0:02:44.5]} 15. Nxa5 {[%clk
0:02:26.3]} 15... Ba8 {[%clk 0:02:45.1]} 16. Ra2 {[%clk 0:01:56.6]} 16... c5
{[%clk 0:02:43.3]} 17. Bf3 {[%clk 0:01:53.2]} 17... Qc7 {[%clk 0:02:24.3]} 18.
Bxa8 {[%clk 0:01:49.2]} 18... Rxa8 {[%clk 0:02:24.1]} 19. d5 {[%clk 0:01:36.3]}
19... Rfe8 {[%clk 0:02:20.2]} 20. Bg3 {[%clk 0:01:29.6]} 20... Rab8 {[%clk
0:02:13.4]} 21. b3 {[%clk 0:01:28.5]} 21... Rb6 {[%clk 0:02:09]} 22. Qc2 {[%clk
0:01:22]} 22... e6 {[%clk 0:01:49.7]} 23. Rd1 {[%clk 0:01:17.6]} 23... exd5
{[%clk 0:01:47.3]} 24. cxd5 {[%clk 0:01:17.4]} 24... Ne5 {[%clk 0:01:38.9]} 25.
Bxe5 {[%clk 0:01:07.9]} 25... Bxe5 {[%clk 0:01:39.8]} 26. Nc4 {[%clk 0:01:06.5]}
26... Rb4 {[%clk 0:01:37.5]} 27. Rxa6 {[%clk 0:01:02.1]} 27... Qb7 {[%clk
0:01:29.5]} 28. Ra3 {[%clk 0:01:01.7]} 28... Qb8 {[%clk 0:01:23.1]} 29. Qa2
{[%clk 0:01:00.9]} 29... Bf6 {[%clk 0:01:16.1]} 30. Na5 {[%clk 0:01:00.4]} 30...
Rb6 {[%clk 0:01:08.3]} 31. Nc6 {[%clk 0:00:58.2]} 31... Qc8 {[%clk 0:01:07.2]}
32. e4 {[%clk 0:00:53.4]} 32... c4 {[%clk 0:01:01.5]} 33. b4 {[%clk 0:00:46.7]}
33... Kg7 {[%clk 0:01:00.4]} 34. Qxc4 {[%clk 0:00:44.5]} 34... h5 {[%clk
0:00:56.6]} 35. Ra7 {[%clk 0:00:43.1]} 35... Kg8 {[%clk 0:00:47]} 36. b5 {[%clk
0:00:36.2]} 36... g5 {[%clk 0:00:44]} 37. e5 {[%clk 0:00:36.6]} 37... Bxe5
{[%clk 0:00:38.6]} 38. Ne7+ {[%clk 0:00:35.8]} 1-0

[Event "Early-Titled-Tuesday-Blitz-March-19-2024"]
[Site "Chess.com"]
[Date "2024.03.19"]
[Round "9"]
[White "Herzog2012"]
[Black "ChessQueen"]
[Result "0-1"]
[WhiteElo "2534"]
[BlackElo "2748"]
[TimeControl "180+1"]
[EndTime "9:44:18 PDT"]
[Termination "ChessQueen won on time"]

1. e4 {[%clk 0:02:56.3]} 1... c6 {[%clk 0:02:59.9]} 2. d4 {[%clk 0:02:54.4]}
2... d5 {[%clk 0:03:00.3]} 3. e5 {[%clk 0:02:52.9]} 3... Bf5 {[%clk 0:02:58.9]}
4. Nf3 {[%clk 0:02:52.7]} 4... e6 {[%clk 0:02:58.5]} 5. Be2 {[%clk 0:02:52.9]}
5... Ne7 {[%clk 0:02:58.1]} 6. O-O {[%clk 0:02:51.7]} 6... Ng6 {[%clk
0:02:58.3]} 7. a4 {[%clk 0:02:43.1]} 7... c5 {[%clk 0:02:57.5]} 8. c4 {[%clk
0:02:24.6]} 8... Nc6 {[%clk 0:02:55.3]} 9. cxd5 {[%clk 0:02:23.6]} 9... exd5
{[%clk 0:02:55.7]} 10. Nc3 {[%clk 0:02:14.5]} 10... c4 {[%clk 0:02:53.6]} 11. b3
{[%clk 0:02:11.9]} 11... Bb4 {[%clk 0:02:50.5]} 12. Bd2 {[%clk 0:01:58.3]} 12...
O-O {[%clk 0:02:44.1]} 13. Nb5 {[%clk 0:01:43.7]} 13... Be7 {[%clk 0:02:36.2]}
14. bxc4 {[%clk 0:01:38.5]} 14... dxc4 {[%clk 0:02:37.1]} 15. Be3 {[%clk
0:01:22.6]} 15... a6 {[%clk 0:02:22.8]} 16. Nc3 {[%clk 0:01:12.5]} 16... Nb4
{[%clk 0:02:17.3]} 17. Nd2 {[%clk 0:00:52.2]} 17... Nc2 {[%clk 0:02:05.8]} 18.
Nxc4 {[%clk 0:00:49.9]} 18... Nxa1 {[%clk 0:02:04.4]} 19. Qxa1 {[%clk
0:00:50.8]} 19... b5 {[%clk 0:02:03.6]} 20. Nd2 {[%clk 0:00:43.8]} 20... b4
{[%clk 0:02:03.9]} 21. Nce4 {[%clk 0:00:42.4]} 21... b3 {[%clk 0:02:02.7]} 22.
Bc4 {[%clk 0:00:34.1]} 22... Rb8 {[%clk 0:02:01.7]} 23. Rb1 {[%clk 0:00:31.6]}
23... Rb4 {[%clk 0:01:50.5]} 24. Bxb3 {[%clk 0:00:28.2]} 24... Qa8 {[%clk
0:01:50.8]} 25. Bc2 {[%clk 0:00:26.5]} 25... Rc8 {[%clk 0:01:46.6]} 26. Rxb4
{[%clk 0:00:23]} 26... Rxc2 {[%clk 0:01:44.7]} 27. Qb1 {[%clk 0:00:11.5]} 27...
Bxb4 {[%clk 0:01:42.1]} 28. Qxc2 {[%clk 0:00:10.1]} 28... Bxd2 {[%clk
0:01:42.4]} 29. Nf6+ {[%clk 0:00:04.3]} 29... gxf6 {[%clk 0:01:42.4]} 30. Qxd2
{[%clk 0:00:05.2]} 30... fxe5 {[%clk 0:01:40.4]} 31. d5 {[%clk 0:00:05.6]} 31...
Qb7 {[%clk 0:01:34.8]} 32. f3 {[%clk 0:00:04.7]} 32... Qb1+ {[%clk 0:01:33.9]}
33. Kf2 {[%clk 0:00:04.7]} 33... Qc2 {[%clk 0:01:33.1]} 34. Qxc2 {[%clk
0:00:04.7]} 34... Bxc2 {[%clk 0:01:33.3]} 35. d6 {[%clk 0:00:04.3]} 35... Bxa4
{[%clk 0:01:33.4]} 36. Bg5 {[%clk 0:00:02.1]} 36... Bd7 {[%clk 0:01:29.7]} 37.
h4 {[%clk 0:00:02]} 37... f5 {[%clk 0:01:28.7]} 38. h5 {[%clk 0:00:02.3]} 38...
Nf4 {[%clk 0:01:28.6]} 39. Ke3 {[%clk 0:00:01.7]} 39... Nxg2+ {[%clk 0:01:28.1]}
40. Kd3 {[%clk 0:00:01.8]} 40... Kf7 {[%clk 0:01:28.2]} 41. Kc4 {[%clk
0:00:02.2]} 41... Ke6 {[%clk 0:01:28.5]} 42. Kc5 {[%clk 0:00:02.8]} 42... e4
{[%clk 0:01:28.7]} 43. fxe4 {[%clk 0:00:02.9]} 43... fxe4 {[%clk 0:01:29.3]} 44.
Kd4 {[%clk 0:00:03.6]} 44... e3 {[%clk 0:01:27.7]} 45. Kd3 {[%clk 0:00:01]}
45... Bb5+ {[%clk 0:01:26.6]} 46. Kd4 {[%clk 0:00:01]} 46... e2 {[%clk
0:01:26.8]} 0-1